fUSD/lending_fUSD_20241230
["ID","MTS","AMOUNT","RATE_DAILY","PERIOD"]
[347141939,1735519843986,-151.0,0.00013816,2]
[347141940,1735519843995,-151.0,0.00013816,2]
[347141941,1735519844004,-151.0,0.00013816,2]
[347141942,1735519844013,-151.0,0.00013816,2]
[347141943,1735519844022,-491.052408,0.00013816,2]
[347141944,1735519844031,-151.0,0.00013816,2]
[347141945,1735519844040,-151.0,0.00013816,2]
[347141946,1735519844049,-151.0,0.00013816,2]
[347141947,1735519844058,-155.897588,0.00013816,2]
[347141948,1735519844067,-151.0,0.00013816,2]
[347141949,1735519844076,-261.843212,0.00013822,2]
[347141950,1735519844086,-292.116845,0.00013822,2]
[347141951,1735519844095,-292.116845,0.00013822,2]
[347141952,1735519844104,-151.0,0.00013822,2]
[347141953,1735519844113,-151.0,0.00013822,2]
[347141954,1735519844123,-151.0,0.00013822,2]
[347141955,1735519844134,-151.0,0.00013822,2]
[347141956,1735519844143,-151.0,0.00013822,2]
[347141957,1735519844152,-479.430445,0.00013822,2]
[347141958,1735519844160,-479.430445,0.00013822,2]
[347141959,1735519844169,-500.0,0.00013888,2]
[347141960,1735519844178,-500.0,0.00013888,2]
[347141961,1735519844187,-500.0,0.00013888,2]
[347141962,1735519844198,-500.0,0.00013888,2]
[347141963,1735519844207,-500.0,0.00013888,2]
[347141964,1735519844216,-500.0,0.00013888,2]
[347141965,1735519844225,-500.0,0.00013888,2]
[347141966,1735519844234,-500.0,0.00013888,2]
[347141967,1735519844243,-500.0,0.00013888,2]
[347141968,1735519844251,-500.0,0.00013888,2]
[347141969,1735519844260,-1203.14,0.00013888,2]
[347141970,1735519844270,-500.0,0.00013888,2]
[347141971,1735519844279,-603.98,0.00013888,2]
[347141972,1735519844288,-500.0,0.00013888,2]
[347141973,1735519844298,-578.81,0.00013888,2]
[347141974,1735519844307,-1000.0,0.000139,2]
[347141975,1735519844316,-150.0,0.00013905,2]
[347141976,1735519844325,-1000.0,0.00013925,2]
[347141977,1735519844334,-308.53495982,0.00013988,2]
[347141978,1735519844344,-5352.44006531,0.00013989,2]
[347141979,1735519844356,-5521.24157731,0.00013989,2]
[347141980,1735519844365,-114488.75842269,0.00013989,2]
[347141981,1735519844423,757.76,0.00025012,120]
[347141982,1735519844497,500.0,0.00025012,120]
[347141983,1735519844691,500.0,0.00025012,120]
[347141984,1735519844739,757.76,0.00025012,120]
[347141985,1735519844784,500.0,0.00025012,120]
[347141986,1735519844830,500.0,0.00025012,120]
[347141987,1735519844891,500.0,0.00025012,120]
[347141988,1735519845180,500.0,0.00025012,120]
[347141989,1735519845272,757.76,0.00025012,120]
[347141990,1735519845317,500.0,0.00025012,120]
[347141991,1735519845366,500.0,0.00025012,120]
[347141992,1735519845412,500.0,0.00025012,120]
[347141995,1735519845544,500.0,0.00025012,120]
[347141996,1735519845651,757.76,0.00025012,120]
[347141997,1735519845700,500.0,0.00025012,120]
[347141998,1735519845712,-4296.8025,0.00013989,2]
[347141999,1735519845723,-1500.0,0.00013989,2]
[347142000,1735519845735,-4279.86216497,0.00013989,2]
[347142001,1735519845746,-3082.80353809,0.00013989,2]
[347142002,1735519845757,-532.19886339,0.00013989,2]
[347142004,1735519845810,500.0,0.00025012,120]
[347142005,1735519845862,500.0,0.00025012,120]
[347142010,1735519845906,-1433448.50395979,0.00013989,2]
[347142012,1735519845915,-500.0,0.00013989,2]
[347142014,1735519845924,-500.0,0.00013989,2]
[347142016,1735519845933,-500.0,0.00013989,2]
[347142018,1735519845942,-202.930142,0.00013989,2]
[347142020,1735519845951,-500.0,0.00013989,2]
[347142022,1735519845960,-500.0,0.00013989,2]
[347142024,1735519845969,-500.0,0.00013989,2]
[347142026,1735519845978,-151.0,0.00013989,2]
[347142028,1735519845987,-500.0,0.00013989,2]
[347142030,1735519845996,-500.0,0.00013989,2]
[347142032,1735519846004,-500.0,0.00013989,2]
[347142034,1735519846014,-500.0,0.00013989,2]
[347142036,1735519846022,-500.0,0.00013989,2]
[347142038,1735519846031,-500.0,0.00013989,2]
[347142040,1735519846040,-500.91,0.00013989,2]
[347142041,1735519846049,-606.1,0.00013989,2]
[347142044,1735519846058,-500.0,0.00013989,2]
[347142045,1735519846068,-500.0,0.00013989,2]
[347142047,1735519846078,-500.0,0.00013989,2]
[347142049,1735519846087,-500.0,0.00013989,2]
[347142052,1735519846096,-500.0,0.00013989,2]
[347142053,1735519846106,-223.86387171,0.00013989,2]
[347142055,1735519846115,-500.0,0.00013989,2]
[347142057,1735519846124,-585.1,0.00013989,2]
[347142059,1735519846134,-500.0,0.00013989,2]
[347142062,1735519846143,-500.0,0.00013989,2]
[347142064,1735519846152,-500.0,0.00013989,2]
[347142065,1735519846161,-500.0,0.00013989,2]
[347142068,1735519846171,-500.0,0.00013989,2]
[347142069,1735519846180,-500.0,0.00013989,2]
[347142070,1735519846189,-604.46,0.00013989,2]
[347142071,1735519846200,-500.0,0.00013989,2]
[347142072,1735519846209,-500.0,0.00013989,2]
[347142073,1735519846219,-500.0,0.00013989,2]
[347142074,1735519846229,-500.0,0.00013989,2]
[347142075,1735519846238,-500.0,0.00013989,2]
[347142076,1735519846247,-677.25,0.00013989,2]
[347142077,1735519846256,-500.0,0.00013989,2]
[347142078,1735519846265,-500.0,0.00013989,2]
[347142079,1735519846274,-500.0,0.00013989,2]
[347142080,1735519846283,-500.0,0.00013989,2]
[347142081,1735519846292,-500.0,0.00013989,2]
[347142082,1735519846301,-338.74,0.00013989,2]
[347142083,1735519846310,-500.0,0.00013989,2]
[347142084,1735519846319,-500.0,0.00013989,2]
[347142085,1735519846328,-522.45,0.00013989,2]
[347142086,1735519846337,-231.92,0.00013989,2]
[347142087,1735519846346,-726.55,0.00013989,2]
[347142088,1735519846355,-537.49,0.00013989,2]
[347142089,1735519846363,-500.0,0.00013989,2]
[347142090,1735519846372,-500.0,0.00013989,2]
[347142091,1735519846383,-500.0,0.00013989,2]
[347142092,1735519846392,-274.07665132,0.00013989,2]
[347142093,1735519846401,-587.22,0.00013989,2]
[347142094,1735519846410,-509.5,0.00013989,2]
[347142095,1735519846419,-690.65,0.00013989,2]
[347142096,1735519846427,-500.0,0.00013989,2]
[347142097,1735519846436,-534.3,0.00013989,2]
[347142098,1735519846445,-500.0,0.00013989,2]
[347142099,1735519846454,-668.95,0.00013989,2]
[347142100,1735519846463,-727.33,0.00013989,2]
[347142101,1735519846472,-500.0,0.00013989,2]
[347142102,1735519846481,-500.0,0.00013989,2]
[347142103,1735519846490,-522.05,0.00013989,2]
[347142104,1735519846499,-500.0,0.00013989,2]
[347142105,1735519846508,-500.0,0.00013989,2]
[347142106,1735519846518,-500.0,0.00013989,2]
[347142107,1735519846527,-500.0,0.00013989,2]
[347142108,1735519846535,-539.87,0.00013989,2]
[347142109,1735519846544,-500.0,0.00013989,2]
[347142110,1735519846554,-778.83,0.00013989,2]
[347142111,1735519846564,-500.0,0.00013989,2]
[347142112,1735519846573,-500.0,0.00013989,2]
[347142113,1735519846582,-500.0,0.00013989,2]
[347142114,1735519846591,-748.67,0.00013989,2]
[347142115,1735519846600,-916.92,0.00013989,2]
[347142116,1735519846609,-500.0,0.00013989,2]
[347142117,1735519846618,-500.0,0.00013989,2]
[347142118,1735519846627,-500.0,0.00013989,2]
[347142119,1735519846636,-500.0,0.00013989,2]
[347142120,1735519846645,-500.0,0.00013989,2]
[347142121,1735519846654,-500.0,0.00013989,2]
[347142122,1735519846665,-726.65,0.00013989,2]
[347142123,1735519846674,-500.0,0.00013989,2]
[347142124,1735519846683,-500.0,0.00013989,2]
[347142125,1735519846692,-500.0,0.00013989,2]
[347142126,1735519846701,-500.0,0.00013989,2]
[347142127,1735519846710,-770.76,0.00013989,2]
[347142128,1735519846718,-500.0,0.00013989,2]
[347142129,1735519846728,-500.0,0.00013989,2]
[347142130,1735519846737,-500.0,0.00013989,2]
[347142131,1735519846746,-500.0,0.00013989,2]
[347142132,1735519846755,-500.0,0.00013989,2]
[347142133,1735519846765,-509.28,0.00013989,2]
[347142134,1735519846773,-500.0,0.00013989,2]
[347142135,1735519846782,-629.54,0.00013989,2]
[347142136,1735519846791,-500.0,0.00013989,2]
[347142137,1735519846800,-500.0,0.00013989,2]
[347142138,1735519846809,-668.05,0.00013989,2]
[347142139,1735519846818,-500.0,0.00013989,2]
[347142140,1735519846827,-700.67,0.00013989,2]
[347142141,1735519846837,-500.0,0.00013989,2]
[347142142,1735519846846,-500.0,0.00013989,2]
[347142143,1735519846855,-500.0,0.00013989,2]
[347142144,1735519846864,-500.0,0.00013989,2]
[347142145,1735519846873,-586.4,0.00013989,2]
[347142146,1735519846883,-500.0,0.00013989,2]
[347142147,1735519846891,-683.48,0.00013989,2]
[347142148,1735519846900,-500.0,0.00013989,2]
[347142149,1735519846909,-500.0,0.00013989,2]
[347142150,1735519846918,-500.0,0.00013989,2]
[347142151,1735519846927,-500.0,0.00013989,2]
[347142152,1735519846936,-500.0,0.00013989,2]
[347142153,1735519846945,-703.12,0.00013989,2]
[347142154,1735519846955,-555.13,0.00013989,2]
[347142155,1735519846964,-500.0,0.00013989,2]
[347142156,1735519846973,-500.0,0.00013989,2]
[347142157,1735519846983,-647.58,0.00013989,2]
[347142158,1735519846992,-541.55,0.00013989,2]
[347142159,1735519847001,-714.96,0.00013989,2]
[347142160,1735519847010,-574.19,0.00013989,2]
[347142161,1735519847019,-574.68,0.00013989,2]
[347142162,1735519847028,-717.6,0.00013989,2]
[347142163,1735519847037,-500.0,0.00013989,2]
[347142164,1735519847051,-797.71,0.00013989,2]
[347142165,1735519847059,-500.0,0.00013989,2]
[347142166,1735519847069,-500.0,0.00013989,2]
[347142167,1735519847079,-785.06,0.00013989,2]
[347142168,1735519847087,-546.4,0.00013989,2]
[347142169,1735519847096,-642.7,0.00013989,2]
[347142170,1735519847105,-500.0,0.00013989,2]
[347142171,1735519847114,-500.0,0.00013989,2]
[347142172,1735519847123,-500.0,0.00013989,2]
[347142173,1735519847132,-500.0,0.00013989,2]
[347142174,1735519847141,-500.0,0.00013989,2]
[347142175,1735519847149,-500.0,0.00013989,2]
[347142176,1735519847159,-500.0,0.00013989,2]
[347142177,1735519847168,-500.0,0.00013989,2]
[347142178,1735519847176,-500.0,0.00013989,2]
[347142179,1735519847188,-3395.35,0.00013989,2]
[347142180,1735519847198,-547.65,0.00013989,2]
[347142181,1735519847207,-577.81,0.00013989,2]
[347142182,1735519847216,-586.4,0.00013989,2]
[347142183,1735519847225,-500.0,0.00013989,2]
[347142184,1735519847234,-500.0,0.00013989,2]
[347142185,1735519847244,-757.57,0.00013989,2]
[347142186,1735519847253,-1181.96,0.00013989,2]
[347142187,1735519847262,-2234.06,0.00013989,2]
[347142188,1735519847271,-500.0,0.00013989,2]
[347142189,1735519847281,-749.71,0.00013989,2]
[347142190,1735519847290,-500.0,0.00013989,2]
[347142191,1735519847299,-500.0,0.00013989,2]
[347142192,1735519847308,-697.05,0.00013989,2]
[347142193,1735519847318,-500.0,0.00013989,2]
[347142194,1735519847327,-577.16,0.00013989,2]
[347142195,1735519847336,-1894.3,0.00013989,2]
[347142196,1735519847344,-847.91,0.00013989,2]
[347142197,1735519847354,-1563.62,0.00013989,2]
[347142198,1735519847363,-500.0,0.00013989,2]
[347142199,1735519847371,-743.22,0.00013989,2]
[347142200,1735519847380,-500.0,0.00013989,2]
[347142201,1735519847389,-560.83,0.00013989,2]
[347142202,1735519847399,-500.0,0.00013989,2]
[347142203,1735519847408,-563.97,0.00013989,2]
[347142204,1735519847417,-632.12,0.00013989,2]
[347142205,1735519847426,-3849.59,0.00013989,2]
[347142206,1735519847435,-500.0,0.00013989,2]
[347142207,1735519847444,-815.27,0.00013989,2]
[347142208,1735519847454,-500.0,0.00013989,2]
[347142209,1735519847463,-500.0,0.00013989,2]
[347142210,1735519847472,-500.0,0.00013989,2]
[347142211,1735519847481,-570.42,0.00013989,2]
[347142212,1735519847490,-504.25,0.00013989,2]
[347142213,1735519847499,-1658.0,0.00013994,2]
[347142214,1735519847508,-2098.4853326,0.00014,3]
[347142215,1735519847517,-500.0,0.00014,2]
[347142216,1735519847526,-150.0,0.00014023,2]
[347142217,1735519847535,-150.0,0.00014027,2]
[347142218,1735519847544,-436.65,0.00014027,2]
[347142219,1735519847553,-150.0,0.00014027,2]
[347142220,1735519847562,-436.65,0.00014027,2]
[347142221,1735519847571,-354.86,0.00014027,2]
[347142222,1735519847580,-150.0,0.00014027,2]
[347142223,1735519847590,-436.65,0.00014027,2]
[347142224,1735519847599,-261.44,0.00014027,2]
[347142225,1735519847608,-1690.11,0.00014027,2]
[347142226,1735519847618,-436.65,0.00014027,2]
[347142227,1735519847627,-436.65,0.00014027,2]
[347142228,1735519847636,-150.0,0.00014027,2]
[347142229,1735519847646,-365.3,0.00014027,2]
[347142230,1735519847655,-436.65,0.00014027,2]
[347142231,1735519847665,-436.65,0.00014027,2]
[347142232,1735519847675,-436.65,0.00014027,2]
[347142233,1735519847684,-150.0,0.00014055,2]
[347142234,1735519847693,-500.0,0.00014068,2]
[347142235,1735519847704,-898.07,0.00014068,2]
[347142236,1735519847713,-632.42,0.00014068,2]
[347142237,1735519847722,-519.75,0.00014068,2]
[347142238,1735519847731,-644.79,0.00014068,2]
[347142239,1735519847741,-526.75,0.00014068,2]
[347142240,1735519847750,-1264.63,0.00014068,2]
[347142241,1735519847759,-756.29,0.00014068,2]
[347142242,1735519847768,-1116.01,0.00014068,2]
[347142243,1735519847776,-552.38,0.00014068,2]
[347142244,1735519847786,-1198.35,0.00014068,2]
[347142245,1735519847795,-500.0,0.00014068,2]
[347142246,1735519847804,-750.86,0.00014068,2]
[347142247,1735519847813,-743.69,0.00014068,2]
[347142248,1735519847823,-500.0,0.00014068,2]
[347142249,1735519847831,-500.0,0.00014068,2]
[347142250,1735519847840,-500.0,0.00014068,2]
[347142251,1735519847849,-626.25,0.00014068,2]
[347142252,1735519847858,-151.0,0.00014068,2]
[347142253,1735519847867,-151.0,0.00014068,2]
[347142254,1735519847877,-150.0,0.00014082,2]
[347142255,1735519847887,-151.0,0.0001409,2]
[347142256,1735519847897,-153.878562,0.00014091,2]
[347142257,1735519847906,-151.0,0.00014091,2]
[347142258,1735519847916,-308.573537,0.00014091,2]
[347142259,1735519847925,-308.573537,0.00014091,2]
[347142260,1735519847935,-251.077567,0.00014091,2]
[347142261,1735519847943,-251.077567,0.00014091,2]
[347142262,1735519847954,-151.0,0.00014096,2]
[347142263,1735519847963,-151.0,0.00014096,2]
[347142264,1735519847973,-151.0,0.00014096,2]
[347142265,1735519847982,-151.0,0.00014096,2]
[347142266,1735519847990,-491.052408,0.00014096,2]
[347142267,1735519848000,-292.116845,0.00014096,2]
[347142268,1735519848009,-292.116845,0.00014096,2]
[347142269,1735519848018,-151.0,0.00014096,2]
[347142270,1735519848027,-151.0,0.00014096,2]
[347142271,1735519848038,-151.0,0.00014096,2]
[347142272,1735519848047,-209.363182,0.00014096,2]
[347142273,1735519848057,-479.430445,0.00014096,2]
[347142274,1735519848067,-479.430445,0.00014096,2]
[347142275,1735519848077,-346.05796302,0.00014111,2]
[347142276,1735519848086,-150.0,0.00014131,2]
[347142277,1735519848096,-502.113,0.0001416,2]
[347142278,1735519848108,-500.0,0.00014162,2]
[347142279,1735519848118,-352.73,0.00014162,2]
[347142280,1735519848127,-500.0,0.00014162,2]
[347142281,1735519848136,-500.0,0.00014162,2]
[347142282,1735519848146,-500.0,0.00014162,2]
[347142283,1735519848155,-500.0,0.00014162,2]
[347142284,1735519848164,-500.0,0.00014162,2]
[347142285,1735519848173,-500.0,0.00014162,2]
[347142286,1735519848182,-500.0,0.00014162,2]
[347142287,1735519848191,-500.0,0.00014162,2]
[347142288,1735519848202,-1203.14,0.00014162,2]
[347142289,1735519848212,-500.0,0.00014162,2]
[347142290,1735519848222,-603.98,0.00014162,2]
[347142291,1735519848231,-500.0,0.00014162,2]
[347142292,1735519848241,-578.81,0.00014162,2]
[347142293,1735519848250,-500.0,0.00014173,2]
[347142294,1735519848259,-150.0,0.00014176,2]
[347142295,1735519848268,-150.0,0.00014195,2]
[347142296,1735519848278,-151.0,0.00014217,2]
[347142297,1735519848287,-151.562257,0.00014217,2]
[347142298,1735519848296,-151.0,0.00014217,2]
[347142299,1735519848306,-8472.69,0.00014233,2]
[347142300,1735519848316,-289.296,0.00014233,2]
[347142301,1735519848325,-150.0,0.00014239,2]
[347142302,1735519848335,-500.0,0.00014262,2]
[347142303,1735519848344,-500.0,0.00014263,2]
[347142304,1735519848354,-500.0,0.00014263,2]
[347142305,1735519848363,-500.0,0.00014263,2]
[347142306,1735519848373,-500.0,0.00014263,2]
[347142307,1735519848385,-500.0,0.00014263,2]
[347142308,1735519848395,-500.0,0.00014263,2]
[347142309,1735519848404,-500.0,0.00014263,2]
[347142310,1735519848413,-500.0,0.00014263,2]
[347142311,1735519848424,-500.0,0.00014263,2]
[347142312,1735519848433,-500.0,0.00014263,2]
[347142313,1735519848443,-557.29862219,0.00014263,2]
[347142314,1735519848453,-500.0,0.00014263,2]
[347142315,1735519848463,-500.91,0.00014263,2]
[347142316,1735519848473,-606.1,0.00014263,2]
[347142317,1735519848482,-500.0,0.00014263,2]
[347142318,1735519848492,-500.0,0.00014263,2]
[347142319,1735519848502,-500.0,0.00014263,2]
[347142320,1735519848512,-500.0,0.00014263,2]
[347142321,1735519848521,-500.0,0.00014263,2]
[347142322,1735519848531,-500.0,0.00014263,2]
[347142323,1735519848541,-585.1,0.00014263,2]
[347142324,1735519848550,-500.0,0.00014263,2]
[347142325,1735519848560,-500.0,0.00014263,2]
[347142326,1735519848569,-500.0,0.00014263,2]
[347142327,1735519848579,-500.0,0.00014263,2]
[347142328,1735519848588,-500.0,0.00014263,2]
[347142329,1735519848598,-500.0,0.00014263,2]
[347142330,1735519848608,-604.46,0.00014263,2]
[347142331,1735519848617,-500.0,0.00014263,2]
[347142332,1735519848626,-500.0,0.00014263,2]
[347142333,1735519848636,-500.0,0.00014263,2]
[347142334,1735519848646,-500.0,0.00014263,2]
[347142335,1735519848656,-500.0,0.00014263,2]
[347142336,1735519848666,-677.25,0.00014263,2]
[347142337,1735519848675,-500.0,0.00014263,2]
[347142338,1735519848685,-500.0,0.00014263,2]
[347142339,1735519848694,-500.0,0.00014263,2]
[347142340,1735519848705,-500.0,0.00014263,2]
[347142341,1735519848715,-500.0,0.00014263,2]
[347142342,1735519848724,-500.0,0.00014263,2]
[347142343,1735519848735,-500.0,0.00014263,2]
[347142344,1735519848744,-522.45,0.00014263,2]
[347142345,1735519848754,-726.55,0.00014263,2]
[347142346,1735519848764,-537.49,0.00014263,2]
[347142347,1735519848774,-500.0,0.00014263,2]
[347142348,1735519848784,-500.0,0.00014263,2]
[347142349,1735519848794,-500.0,0.00014263,2]
[347142350,1735519848804,-587.22,0.00014263,2]
[347142351,1735519848815,-509.5,0.00014263,2]
[347142352,1735519848825,-690.65,0.00014263,2]
[347142353,1735519848834,-500.0,0.00014263,2]
[347142354,1735519848844,-534.3,0.00014263,2]
[347142355,1735519848854,-500.0,0.00014263,2]
[347142356,1735519848865,-668.95,0.00014263,2]
[347142357,1735519848874,-727.33,0.00014263,2]
[347142358,1735519848884,-500.0,0.00014263,2]
[347142359,1735519848894,-500.0,0.00014263,2]
[347142360,1735519848905,-522.05,0.00014263,2]
[347142361,1735519848915,-500.0,0.00014263,2]
[347142362,1735519848925,-500.0,0.00014263,2]
[347142363,1735519848935,-500.0,0.00014263,2]
[347142364,1735519848944,-500.0,0.00014263,2]
[347142365,1735519848954,-539.87,0.00014263,2]
[347142366,1735519848964,-602.34184872,0.00014263,2]
[347142367,1735519848973,-778.83,0.00014263,2]
[347142368,1735519849137,-500.0,0.00014263,2]
[347142369,1735519849171,-500.0,0.00014263,2]
[347142370,1735519849182,-500.0,0.00014263,2]
[347142371,1735519849192,-748.67,0.00014263,2]
[347142372,1735519849203,-916.92,0.00014263,2]
[347142373,1735519849213,-500.0,0.00014263,2]
[347142374,1735519849223,-500.0,0.00014263,2]
[347142375,1735519849233,-500.0,0.00014263,2]
[347142376,1735519849243,-500.0,0.00014263,2]
[347142377,1735519849253,-500.0,0.00014263,2]
[347142378,1735519849262,-500.0,0.00014263,2]
[347142379,1735519849271,-726.65,0.00014263,2]
[347142380,1735519849281,-500.0,0.00014263,2]
[347142381,1735519849290,-500.0,0.00014263,2]
[347142382,1735519849300,-500.0,0.00014263,2]
[347142383,1735519849310,-500.0,0.00014263,2]
[347142384,1735519849319,-770.76,0.00014263,2]
[347142385,1735519849329,-500.0,0.00014263,2]
[347142386,1735519849340,-500.0,0.00014263,2]
[347142387,1735519849349,-500.0,0.00014263,2]
[347142388,1735519849359,-500.0,0.00014263,2]
[347142389,1735519849369,-500.0,0.00014263,2]
[347142390,1735519849380,-509.28,0.00014263,2]
[347142391,1735519849389,-500.0,0.00014263,2]
[347142392,1735519849398,-629.54,0.00014263,2]
[347142393,1735519849407,-500.0,0.00014263,2]
[347142394,1735519849416,-500.0,0.00014263,2]
[347142395,1735519849426,-668.05,0.00014263,2]
[347142396,1735519849436,-500.0,0.00014263,2]
[347142397,1735519849446,-700.67,0.00014263,2]
[347142398,1735519849455,-500.0,0.00014263,2]
[347142399,1735519849465,-500.0,0.00014263,2]
[347142400,1735519849474,-500.0,0.00014263,2]
[347142401,1735519849484,-500.0,0.00014263,2]
[347142402,1735519849493,-586.4,0.00014263,2]
[347142403,1735519849502,-500.0,0.00014263,2]
[347142404,1735519849512,-683.48,0.00014263,2]
[347142405,1735519849522,-500.0,0.00014263,2]
[347142406,1735519849531,-500.0,0.00014263,2]
[347142407,1735519849541,-500.0,0.00014263,2]
[347142408,1735519849550,-500.0,0.00014263,2]
[347142409,1735519849559,-500.0,0.00014263,2]
[347142410,1735519849569,-703.12,0.00014263,2]
[347142411,1735519849578,-500.0,0.00014263,2]
[347142412,1735519849588,-647.58,0.00014263,2]
[347142413,1735519849597,-541.55,0.00014263,2]
[347142414,1735519849607,-714.96,0.00014263,2]
[347142415,1735519849616,-574.19,0.00014263,2]
[347142416,1735519849626,-574.68,0.00014263,2]
[347142417,1735519849636,-717.6,0.00014263,2]
[347142418,1735519849646,-500.0,0.00014263,2]
[347142419,1735519849655,-797.71,0.00014263,2]
[347142420,1735519849665,-500.0,0.00014263,2]
[347142421,1735519849674,-500.0,0.00014263,2]
[347142422,1735519849684,-785.06,0.00014263,2]
[347142423,1735519849693,-546.4,0.00014263,2]
[347142424,1735519849703,-642.7,0.00014263,2]
[347142425,1735519849713,-500.0,0.00014263,2]
[347142426,1735519849723,-500.0,0.00014263,2]
[347142427,1735519849733,-500.0,0.00014263,2]
[347142428,1735519849743,-500.0,0.00014263,2]
[347142429,1735519849752,-500.0,0.00014263,2]
[347142430,1735519849762,-500.0,0.00014263,2]
[347142431,1735519849772,-500.0,0.00014263,2]
[347142432,1735519849782,-500.0,0.00014263,2]
[347142433,1735519849791,-500.0,0.00014263,2]
[347142434,1735519849801,-3395.35,0.00014263,2]
[347142435,1735519849811,-547.65,0.00014263,2]
[347142436,1735519849820,-577.81,0.00014263,2]
[347142437,1735519849830,-586.4,0.00014263,2]
[347142438,1735519849839,-500.0,0.00014263,2]
[347142439,1735519849849,-500.0,0.00014263,2]
[347142440,1735519849859,-757.57,0.00014263,2]
[347142441,1735519849868,-1181.96,0.00014263,2]
[347142442,1735519849878,-2234.06,0.00014263,2]
[347142443,1735519849888,-500.0,0.00014263,2]
[347142444,1735519849897,-749.71,0.00014263,2]
[347142445,1735519849907,-500.0,0.00014263,2]
[347142446,1735519849917,-500.0,0.00014263,2]
[347142447,1735519849926,-697.05,0.00014263,2]
[347142448,1735519849935,-500.0,0.00014263,2]
[347142449,1735519849945,-577.16,0.00014263,2]
[347142450,1735519849955,-1894.3,0.00014263,2]
[347142451,1735519849965,-847.91,0.00014263,2]
[347142452,1735519849974,-500.0,0.00014263,2]
[347142453,1735519849983,-1563.62,0.00014263,2]
[347142454,1735519849993,-743.22,0.00014263,2]
[347142455,1735519850002,-500.0,0.00014263,2]
[347142456,1735519850012,-560.83,0.00014263,2]
[347142457,1735519850021,-500.0,0.00014263,2]
[347142458,1735519850030,-563.97,0.00014263,2]
[347142459,1735519850040,-632.12,0.00014263,2]
[347142460,1735519850049,-3849.59,0.00014263,2]
[347142461,1735519850059,-500.0,0.00014263,2]
[347142462,1735519850068,-815.27,0.00014263,2]
[347142463,1735519850077,-500.0,0.00014263,2]
[347142464,1735519850087,-500.0,0.00014263,2]
[347142465,1735519850097,-500.0,0.00014263,2]
[347142466,1735519850105,-570.42,0.00014263,2]
[347142467,1735519850115,-504.25,0.00014263,2]
[347142468,1735519850123,-151.0,0.0001427,2]
[347142469,1735519850133,-151.0,0.0001427,2]
[347142470,1735519850142,-436.65,0.00014312,2]
[347142471,1735519850151,-150.0,0.00014312,2]
[347142472,1735519850161,-151.0,0.00014342,2]
[347142473,1735519850170,-151.0,0.00014342,2]
[347142474,1735519850180,-151.0,0.00014342,2]